fUSD/lending_fUSD_20260606
["ID","MTS","AMOUNT","RATE_DAILY","PERIOD"]
[424276107,1780731032000,-171.33727842,9.422e-05,2]
[424276104,1780731032000,-183.07272168,9.421e-05,2]
[424276103,1780731032000,-655.43590005,9.368e-05,2]
[424276113,1780731032000,-151.0,9.465e-05,2]
[424276124,1780731032000,-500.0,9.467e-05,2]
[424276137,1780731032000,-699.49483532,9.468e-05,2]
[424276130,1780731032000,-500.0,9.467e-05,2]
[424276157,1780731032000,-1488.70773973,9.468e-05,2]
[424276151,1780731032000,-194590.0562053,9.468e-05,2]
[424276126,1780731032000,-632.84815323,9.467e-05,2]
[424276155,1780731032000,-308.93914437,9.468e-05,2]
[424276153,1780731032000,-1254.41808677,9.468e-05,2]
[424276147,1780731032000,-129988.62179315,9.468e-05,2]
[424276149,1780731032000,-86726.86010389,9.468e-05,2]
[424276138,1780731032000,-462.10370312,9.468e-05,2]
[424276136,1780731032000,-3733.42788818,9.468e-05,2]
[424276134,1780731032000,-1997.50046383,9.468e-05,2]
[424276159,1780731032000,-824.12062369,9.468e-05,2]
[424276142,1780731032000,-639.02351864,9.468e-05,2]
[424276144,1780731032000,-1015571.7118131,9.468e-05,2]
[424276128,1780731032000,-500.0,9.467e-05,2]
[424276133,1780731032000,-83.0237413,9.468e-05,2]
[424276131,1780731032000,-82.11216855,9.467e-05,2]
[424276125,1780731032000,-500.0,9.467e-05,2]
[424276127,1780731032000,-500.0,9.467e-05,2]
[424276135,1780731032000,-379.53391842,9.468e-05,2]
[424276140,1780731032000,-6367.11,9.468e-05,2]
[424276129,1780731032000,-500.0,9.467e-05,2]
[424276201,1780731038000,-6666.145,9.568e-05,2]
[424276197,1780731038000,-198.73,9.505e-05,2]
[424276207,1780731038000,-2000.0,9.581e-05,2]
[424276195,1780731038000,-2500.0,9.49e-05,2]
[424276203,1780731038000,-326.896,9.568e-05,2]
[424276199,1780731038000,-183.07272168,9.552e-05,2]
[424276215,1780731038000,-33261.1868,9.6e-05,2]
[424276221,1780731038000,-164.44385732,9.699e-05,2]
[424276220,1780731038000,-1777.0,9.671e-05,2]
[424276230,1780731038000,-340.0,0.0001,2]
[424276232,1780731038000,-340.83087181,0.0001,2]
[424276224,1780731038000,-250.0,9.834e-05,2]
[424276231,1780731038000,-340.0,0.0001,2]
[424276234,1780731038000,-622.59406225,0.0001,2]
[424276217,1780731038000,-30075.0,9.644e-05,2]
[424276213,1780731038000,-1000.0,9.599e-05,2]
[424276227,1780731038000,-169.96514586,0.0001,2]
[424276209,1780731038000,-4000.0,9.581e-05,2]
[424276166,1780731038000,-500.0,8.92e-05,2]
[424276168,1780731038000,-414.23791594,9.468e-05,2]
[424276170,1780731038000,-765.75276877,9.468e-05,2]
[424276173,1780731038000,-340286.88155565,9.468e-05,2]
[424276175,1780731038000,-240.52834395,9.468e-05,2]
[424276179,1780731038000,-151.0,9.468e-05,2]
[424276212,1780731038000,-389.26,9.588e-05,2]
[424276177,1780731038000,-151.0,9.468e-05,2]
[424276181,1780731038000,-2375.19799282,9.47e-05,2]
[424276183,1780731038000,-234.67563737,9.47e-05,2]
[424276187,1780731038000,-1500000.0,9.471e-05,2]
[424276191,1780731038000,-83072.0466,9.471e-05,2]
[424276205,1780731038000,-1000.0,9.57e-05,2]
[424276193,1780731038000,-1000.0,9.485e-05,2]
[424276185,1780731038000,-513.33466301,9.471e-05,2]
[424276226,1780731038000,-537.95166838,9.854e-05,2]
[424276189,1780731038000,-1043.8723,9.471e-05,2]
[424276229,1780731038000,-152.0,0.0001,2]
[424276254,1780731038000,-250.0,0.00010418,2]
[424276255,1780731038000,-310.97035107,0.00010418,2]
[424276256,1780731038000,-171.1,0.00010436,2]
[424276257,1780731038000,-171.1,0.00010436,2]
[424276258,1780731038000,-3467.87,0.00010529,2]
[424276259,1780731038000,-539.0,0.0001063,2]
[424276260,1780731038000,-500.0,0.00010688,2]
[424276261,1780731038000,-8676.02103373,0.000107,2]
[424276263,1780731038000,-1400.0,0.000109,3]
[424276262,1780731038000,-3467.87,0.00010779,2]
[424276264,1780731038000,-9191.2528203,0.000109,2]
[424276266,1780731038000,-400.0,0.000109,3]
[424276268,1780731038000,-2887.57286826,0.00010906,2]
[424276267,1780731038000,-1900.0,0.000109,3]
[424276228,1780731038000,-169.96514586,0.0001,2]
[424276253,1780731038000,-255.0,0.00010414,2]
[424276251,1780731038000,-150.0,0.000104,2]
[424276265,1780731038000,-9191.25282028,0.000109,2]
[424276250,1780731038000,-1921.75634917,0.000104,2]
[424276252,1780731038000,-500.0,0.00010414,2]
[424276236,1780731038000,-2887.57286826,0.0001,2]
[424276235,1780731038000,-171.9,0.0001,2]
[424276239,1780731038000,-2000.0,0.00010129,2]
[424276240,1780731038000,-3467.87,0.00010278,2]
[424276246,1780731038000,-250.0,0.00010363,2]
[424276244,1780731038000,-4000.0,0.00010363,2]
[424276237,1780731038000,-215.80795776,0.00010026,2]
[424276242,1780731038000,-250.2567001,0.00010329,2]
[424276238,1780731038000,-3467.87,0.00010027,2]
[424276247,1780731038000,-500.0,0.00010363,2]
[424276243,1780731038000,-193.0,0.00010363,2]
[424276245,1780731038000,-300.0,0.00010363,2]
[424276249,1780731038000,-233439.72378349,0.000104,2]
[424276241,1780731038000,-257.84023647,0.00010325,2]
[424276248,1780731038000,-2887.57286826,0.0001039,2]
[424276309,1780731039000,-500.0,0.00011236,2]
[424276310,1780731039000,-2000.0,0.00011254,2]
[424276308,1780731039000,-380.24,0.0001122,2]
[424276307,1780731039000,-1205.08,0.0001122,2]
[424276300,1780731039000,-300.0,0.00011098,2]
[424276302,1780731039000,-300.0,0.00011098,2]
[424276298,1780731039000,-300.0,0.00011098,2]
[424276304,1780731039000,-29657.22943863,0.00011099,2]
[424276303,1780731039000,-666.0,0.00011098,2]
[424276311,1780731039000,-309.2365174,0.00011355,2]
[424276297,1780731039000,-300.0,0.00011098,2]
[424276301,1780731039000,-300.0,0.00011098,2]
[424276319,1780731039000,-1548.0,0.0001157,2]
[424276322,1780731039000,-1548.0,0.0001157,2]
[424276312,1780731039000,-300.0,0.00011355,2]
[424276316,1780731039000,-433.0,0.00011455,2]
[424276314,1780731039000,-666.0,0.00011355,2]
[424276318,1780731039000,-1548.0,0.0001157,2]
[424276313,1780731039000,-324.06136501,0.00011355,2]
[424276320,1780731039000,-1548.0,0.0001157,2]
[424276323,1780731039000,-151.0,0.0001157,2]
[424276325,1780731039000,-300.0,0.00011739,2]
[424276324,1780731039000,-250.0,0.00011669,2]
[424276321,1780731039000,-1548.0,0.0001157,2]
[424276326,1780731039000,-666.0,0.00011739,2]
[424276299,1780731039000,-666.0,0.00011098,2]
[424276315,1780731039000,-29657.2294386,0.00011356,2]
[424276305,1780731039000,-29657.2294386,0.00011099,2]
[424276279,1780731039000,-492.981176,0.00010916,2]
[424276296,1780731039000,-300.0,0.00011098,2]
[424276269,1780731039000,-151.0,0.00010913,2]
[424276270,1780731039000,-151.0,0.00010913,2]
[424276271,1780731039000,-150416.2198615,0.00010916,2]
[424276273,1780731039000,-14876.9675543,0.00010916,2]
[424276272,1780731039000,-467143.8231624,0.00010916,2]
[424276275,1780731039000,-151.0,0.00010916,2]
[424276282,1780731039000,-492.981176,0.00010916,2]
[424276276,1780731039000,-151.0,0.00010916,2]
[424276274,1780731039000,-851380.1183021,0.00010916,2]
[424276277,1780731039000,-13439.1518199,0.00010916,2]
[424276278,1780731039000,-851959.8830218,0.00010916,2]
[424276331,1780731039000,-1548.0,0.00011808,2]
[424276280,1780731039000,-492.981176,0.00010916,2]
[424276281,1780731039000,-492.981176,0.00010916,2]
[424276284,1780731039000,-8222.2229614,0.00010931,2]
[424276283,1780731039000,-622.59406224,0.00010923,2]
[424276285,1780731039000,-3062.0948475,0.00010931,2]
[424276286,1780731039000,-9191.25282028,0.0001095,2]
[424276287,1780731039000,-150.0,0.00010959,2]
[424276294,1780731039000,-1030.72,0.00010989,2]
[424276289,1780731039000,-151.0,0.00010959,2]
[424276292,1780731039000,-2000.0,0.00010989,2]
[424276290,1780731039000,-151.0,0.00010959,2]
[424276291,1780731039000,-500.0,0.00010962,2]
[424276288,1780731039000,-150.0,0.00010959,2]
[424276293,1780731039000,-725.67,0.00010989,2]
[424276295,1780731039000,-3467.87,0.0001103,2]
[424276306,1780731039000,-29657.2294386,0.00011099,2]
[424276327,1780731039000,-9191.25282028,0.0001174,2]
[424276317,1780731039000,-500.0,0.0001151,2]
[424276329,1780731039000,-500.0,0.00011784,2]
[424276366,1780731039000,-500.0,0.00012058,2]
[424276361,1780731039000,-500.0,0.00011973,2]
[424276363,1780731039000,-151.0,0.00012,2]
[424276367,1780731039000,-2375.1979928,0.00012135,2]
[424276364,1780731039000,-151.0,0.00012,2]
[424276362,1780731039000,-151.0,0.00012,2]
[424276365,1780731039000,-151.0,0.00012,2]
[424276370,1780731039000,-1087.14071794,0.00012277,2]
[424276369,1780731039000,-1002.27853427,0.0001217,2]
[424276372,1780731039000,-500.0,0.00012332,2]
[424276382,1780731039000,-210.36186942,0.00012575,2]
[424276374,1780731039000,-622.59406224,0.00012475,2]
[424276371,1780731039000,-158.55,0.00012329,2]
[424276373,1780731039000,-2000.0,0.00012379,2]
[424276377,1780731039000,-29657.2294386,0.00012527,2]
[424276376,1780731039000,-666.0,0.00012526,2]
[424276378,1780731039000,-300.0,0.00012529,2]
[424276381,1780731039000,-264.69626257,0.00012575,2]
[424276380,1780731039000,-9191.25282028,0.0001253,2]
[424276379,1780731039000,-676.50366034,0.00012529,2]
[424276383,1780731039000,-736.0,0.00012601,2]
[424276385,1780731039000,-643.33,0.00012611,2]
[424276384,1780731039000,-500.0,0.00012606,2]
[424276388,1780731039000,-167.79157148,0.00012827,2]
[424276387,1780731039000,-168.13102281,0.00012827,2]
[424276328,1780731039000,-1169.9548055,0.00011781,2]
[424276386,1780731039000,-166.66,0.00012745,2]
[424276368,1780731039000,-234.67563737,0.00012135,2]
[424276360,1780731039000,-265.21449048,0.00011966,2]
[424276375,1780731039000,-300.0,0.00012526,2]
[424276358,1780731039000,-29657.2294386,0.00011942,2]
[424276330,1780731039000,-1548.0,0.00011808,2]
[424276359,1780731039000,-179.49,0.00011953,2]
[424276333,1780731039000,-1548.0,0.00011808,2]
[424276334,1780731039000,-1548.0,0.00011808,2]
[424276337,1780731039000,-1548.0,0.00011808,2]
[424276339,1780731039000,-1548.0,0.00011808,2]
[424276341,1780731039000,-1548.0,0.00011808,2]
[424276340,1780731039000,-1548.0,0.00011808,2]
[424276335,1780731039000,-1548.0,0.00011808,2]
[424276336,1780731039000,-1548.0,0.00011808,2]
[424276343,1780731039000,-152.0,0.00011808,2]
[424276338,1780731039000,-1548.0,0.00011808,2]
[424276344,1780731039000,-152.0,0.00011808,2]
[424276342,1780731039000,-1548.0,0.00011808,2]
[424276332,1780731039000,-1548.0,0.00011808,2]
[424276351,1780731039000,-151.0,0.00011808,2]
[424276346,1780731039000,-152.0,0.00011808,2]
[424276347,1780731039000,-151.0,0.00011808,2]
[424276352,1780731039000,-151.0,0.00011808,2]
[424276348,1780731039000,-151.0,0.00011808,2]
[424276349,1780731039000,-151.0,0.00011808,2]
[424276356,1780731039000,-300.0,0.00011941,2]
[424276354,1780731039000,-250.2567001,0.00011878,2]
[424276345,1780731039000,-152.0,0.00011808,2]
[424276353,1780731039000,-500.0,0.00011836,2]
[424276350,1780731039000,-151.0,0.00011808,2]
[424276355,1780731039000,-164.24445272,0.00011878,2]
[424276357,1780731039000,-666.0,0.00011941,2]
[424276429,1780731040000,-500.0,0.00013425,2]
[424276415,1780731040000,-481.11085494,0.00013425,2]
[424276431,1780731040000,-500.0,0.00013425,2]
[424276423,1780731040000,-150.0,0.00013425,2]
[424276427,1780731040000,-500.0,0.00013425,2]
[424276421,1780731040000,-150.0,0.00013425,2]
[424276428,1780731040000,-500.0,0.00013425,2]
[424276426,1780731040000,-500.0,0.00013425,2]
[424276425,1780731040000,-210.61267653,0.00013425,2]
[424276424,1780731040000,-216.30324944,0.00013425,2]
[424276422,1780731040000,-150.0,0.00013425,2]
[424276417,1780731040000,-500.0,0.00013425,2]
[424276430,1780731040000,-500.0,0.00013425,2]
[424276432,1780731040000,-500.0,0.00013425,2]
[424276439,1780731040000,-500.0,0.00013425,2]
[424276435,1780731040000,-500.0,0.00013425,2]
[424276438,1780731040000,-500.0,0.00013425,2]
[424276433,1780731040000,-500.0,0.00013425,2]
[424276434,1780731040000,-500.0,0.00013425,2]
[424276442,1780731040000,-500.0,0.00013425,2]
[424276436,1780731040000,-500.0,0.00013425,2]
[424276441,1780731040000,-500.0,0.00013425,2]
[424276437,1780731040000,-500.0,0.00013425,2]
[424276443,1780731040000,-636.18712205,0.00013425,2]
[424276447,1780731040000,-500.0,0.00013425,2]
[424276444,1780731040000,-500.0,0.00013425,2]
[424276446,1780731040000,-500.0,0.00013425,2]
[424276440,1780731040000,-500.0,0.00013425,2]
[424276418,1780731040000,-500.0,0.00013425,2]
[424276393,1780731040000,-1000.0,0.0001307,2]
[424276414,1780731040000,-500.0,0.00013425,2]
[424276453,1780731040000,-500.0,0.00013425,2]
[424276389,1780731040000,-150.64131538,0.00012827,2]
[424276391,1780731040000,-414.25167571,0.0001288,2]
[424276390,1780731040000,-192.526183,0.00012851,2]
[424276392,1780731040000,-701.11124635,0.0001307,2]
[424276394,1780731040000,-300.0,0.00013112,2]
[424276396,1780731040000,-8563.935718,0.00013157,2]
[424276404,1780731040000,-210.36186942,0.00013384,2]
[424276395,1780731040000,-29657.2294386,0.00013113,2]
[424276397,1780731040000,-166.66,0.00013165,2]
[424276405,1780731040000,-500.0,0.00013397,2]
[424276398,1780731040000,-160.0,0.00013218,2]
[424276406,1780731040000,-389.26,0.00013424,2]
[424276399,1780731040000,-1331.433282,0.00013218,2]
[424276403,1780731040000,-9191.25282028,0.0001332,2]
[424276400,1780731040000,-2502.866564,0.00013218,2]
[424276401,1780731040000,-4083.215702,0.00013292,2]
[424276402,1780731040000,-168.68,0.00013307,2]
[424276407,1780731040000,-500.0,0.00013425,2]
[424276409,1780731040000,-500.0,0.00013425,2]
[424276419,1780731040000,-500.0,0.00013425,2]
[424276420,1780731040000,-633.28363338,0.00013425,2]
[424276410,1780731040000,-500.0,0.00013425,2]
[424276408,1780731040000,-500.0,0.00013425,2]
[424276411,1780731040000,-500.0,0.00013425,2]
[424276412,1780731040000,-500.0,0.00013425,2]
[424276413,1780731040000,-500.0,0.00013425,2]
[424276416,1780731040000,-500.0,0.00013425,2]
[424276445,1780731040000,-500.0,0.00013425,2]
[424276496,1780731040000,-150.0,0.00013537,2]
[424276452,1780731040000,-500.0,0.00013425,2]
[424276483,1780731040000,-150.0,0.00013488,2]
[424276485,1780731040000,-150.0,0.00013488,2]
[424276488,1780731040000,-150.0,0.00013488,2]
[424276481,1780731040000,-150.0,0.00013488,2]
[424276491,1780731040000,-150.0,0.00013512,2]
[424276484,1780731040000,-150.0,0.00013488,2]
[424276482,1780731040000,-150.0,0.00013488,2]
[424276486,1780731040000,-150.44031966,0.00013488,2]
[424276487,1780731040000,-370.6942446,0.00013488,2]
[424276489,1780731040000,-370.6942446,0.00013503,2]
[424276492,1780731040000,-150.0,0.00013516,2]
[424276494,1780731040000,-150.0,0.00013525,2]
[424276497,1780731040000,-150.0,0.00013544,2]
[424276495,1780731040000,-370.6942446,0.00013533,2]
[424276498,1780731040000,-370.6942446,0.00013548,2]
[424276499,1780731040000,-166.01,0.00013557,2]
[424276502,1780731040000,-370.6942446,0.00013563,2]
[424276500,1780731040000,-150.0,0.00013561,2]
[424276501,1780731040000,-150.0,0.00013563,2]
[424276503,1780731040000,-150.0,0.00013567,2]
[424276504,1780731040000,-500.0,0.0001357,2]
[424276506,1780731040000,-150.0,0.00013572,2]
[424276505,1780731040000,-1000.0,0.0001357,2]
[424276509,1780731040000,-166.66,0.00013586,2]
[424276508,1780731040000,-150.0,0.00013586,2]
[424276507,1780731040000,-370.6942446,0.00013578,2]
[424276451,1780731040000,-150.0,0.00013425,2]
[424276480,1780731040000,-150.0,0.00013488,2]
[424276490,1780731040000,-2000.0,0.00013505,2]
[424276493,1780731040000,-370.6942446,0.00013518,2]
[424276478,1780731040000,-150.0,0.00013488,2]
[424276479,1780731040000,-224.38985235,0.00013488,2]
[424276448,1780731040000,-500.0,0.00013425,2]
[424276450,1780731040000,-500.0,0.00013425,2]
[424276454,1780731040000,-500.0,0.00013425,2]
[424276457,1780731040000,-500.0,0.00013425,2]
[424276455,1780731040000,-500.0,0.00013425,2]
[424276459,1780731040000,-500.0,0.00013425,2]
[424276458,1780731040000,-500.0,0.00013425,2]
[424276465,1780731040000,-500.0,0.00013425,2]
[424276456,1780731040000,-500.0,0.00013425,2]
[424276462,1780731040000,-500.0,0.00013425,2]
[424276460,1780731040000,-500.0,0.00013425,2]
[424276463,1780731040000,-500.0,0.00013425,2]
[424276464,1780731040000,-500.0,0.00013425,2]
[424276449,1780731040000,-508.70425749,0.00013425,2]
[424276466,1780731040000,-500.0,0.00013425,2]
[424276461,1780731040000,-500.0,0.00013425,2]
[424276477,1780731040000,-600.33055127,0.00013425,2]
[424276475,1780731040000,-500.0,0.00013425,2]
[424276474,1780731040000,-500.0,0.00013425,2]
[424276468,1780731040000,-500.0,0.00013425,2]
[424276471,1780731040000,-500.0,0.00013425,2]
[424276476,1780731040000,-500.0,0.00013425,2]
[424276473,1780731040000,-500.0,0.00013425,2]
[424276469,1780731040000,-503.41003638,0.00013425,2]
[424276470,1780731040000,-500.0,0.00013425,2]
[424276467,1780731040000,-500.0,0.00013425,2]
[424276472,1780731040000,-500.0,0.00013425,2]
[424276553,1780731041000,-500.0,0.00013698,2]
[424276551,1780731041000,-500.0,0.00013698,2]
[424276547,1780731041000,-500.0,0.00013698,2]
[424276542,1780731041000,-500.0,0.00013698,2]
[424276548,1780731041000,-500.0,0.00013698,2]
[424276550,1780731041000,-500.0,0.00013698,2]
[424276545,1780731041000,-500.0,0.00013698,2]
[424276544,1780731041000,-500.0,0.00013698,2]
[424276549,1780731041000,-500.0,0.00013698,2]
[424276543,1780731041000,-457.12873569,0.00013698,2]
[424276552,1780731041000,-500.0,0.00013698,2]
[424276546,1780731041000,-500.0,0.00013698,2]
[424276563,1780731041000,-500.0,0.00013698,2]
[424276561,1780731041000,-500.0,0.00013698,2]
[424276554,1780731041000,-500.0,0.00013698,2]
[424276555,1780731041000,-500.0,0.00013698,2]
[424276558,1780731041000,-500.0,0.00013698,2]
[424276557,1780731041000,-500.0,0.00013698,2]
[424276559,1780731041000,-500.0,0.00013698,2]
[424276560,1780731041000,-500.0,0.00013698,2]
[424276562,1780731041000,-500.0,0.00013698,2]
[424276564,1780731041000,-500.0,0.00013698,2]
[424276566,1780731041000,-500.0,0.00013698,2]
[424276565,1780731041000,-500.0,0.00013698,2]
[424276568,1780731041000,-500.0,0.00013698,2]
[424276541,1780731041000,-500.0,0.00013698,2]
[424276556,1780731041000,-500.0,0.00013698,2]
[424276540,1780731041000,-502.60698741,0.00013698,2]
[424276512,1780731041000,-150.0,0.00013601,2]
[424276533,1780731041000,-315.52316143,0.00013698,2]
[424276510,1780731041000,-370.6942446,0.00013594,2]
[424276511,1780731041000,-150.0,0.000136,2]
[424276513,1780731041000,-150.0,0.00013603,2]
[424276514,1780731041000,-370.6942446,0.00013609,2]
[424276515,1780731041000,-150.0,0.00013611,2]
[424276521,1780731041000,-370.6942446,0.00013639,2]
[424276520,1780731041000,-150.0,0.00013638,2]
[424276518,1780731041000,-150.0,0.00013629,2]
[424276516,1780731041000,-370.6942446,0.00013624,2]
[424276524,1780731041000,-150.0,0.00013657,2]
[424276519,1780731041000,-150.0,0.00013635,2]
[424276522,1780731041000,-150.0,0.00013645,2]
[424276525,1780731041000,-150.0,0.0001366,2]
[424276526,1780731041000,-370.6942446,0.00013669,2]
[424276523,1780731041000,-370.6942446,0.00013654,2]
[424276530,1780731041000,-150.0,0.00013686,2]
[424276527,1780731041000,-150.0,0.00013675,2]
[424276569,1780731041000,-500.0,0.00013698,2]
[424276528,1780731041000,-150.0,0.00013684,2]
[424276538,1780731041000,-502.09907972,0.00013698,2]
[424276531,1780731041000,-151.0,0.00013696,2]
[424276529,1780731041000,-370.6942446,0.00013684,2]
[424276534,1780731041000,-500.0,0.00013698,2]
[424276532,1780731041000,-638.25290804,0.00013698,2]
[424276537,1780731041000,-500.0,0.00013698,2]
[424276536,1780731041000,-500.0,0.00013698,2]
[424276535,1780731041000,-500.0,0.00013698,2]
[424276539,1780731041000,-500.0,0.00013698,2]
[424276570,1780731041000,-500.0,0.00013698,2]
[424276613,1780731041000,-778.41,0.00013698,2]
[424276571,1780731041000,-500.0,0.00013698,2]
[424276604,1780731041000,-778.41,0.00013698,2]
[424276608,1780731041000,-778.41,0.00013698,2]
[424276605,1780731041000,-778.41,0.00013698,2]
[424276606,1780731041000,-778.41,0.00013698,2]
[424276603,1780731041000,-778.41,0.00013698,2]
[424276612,1780731041000,-778.41,0.00013698,2]
[424276609,1780731041000,-778.41,0.00013698,2]
[424276607,1780731041000,-778.41,0.00013698,2]
[424276610,1780731041000,-778.41,0.00013698,2]
[424276611,1780731041000,-778.41,0.00013698,2]
[424276615,1780731041000,-778.57181491,0.00013698,2]
[424276622,1780731041000,-499.99,0.00013699,2]
[424276602,1780731041000,-778.41,0.00013698,2]
[424276623,1780731041000,-4999.99,0.00013699,2]
[424276624,1780731041000,-1632.13,0.00013699,2]
[424276621,1780731041000,-180.20769026,0.00013699,10]
[424276618,1780731041000,-506.68,0.00013699,2]
[424276625,1780731041000,-2134.84,0.00013699,2]
[424276619,1780731041000,-2500.0,0.00013699,2]
[424276616,1780731041000,-166.66,0.00013699,2]
[424276617,1780731041000,-200.0,0.00013699,2]
[424276620,1780731041000,-500.0,0.00013699,10]
[424276626,1780731041000,-1198.31,0.00013699,2]
[424276629,1780731041000,-19816.59,0.00013699,2]
[424276628,1780731041000,-353.72,0.00013699,2]
[424276627,1780731041000,-98299.77,0.00013699,2]
[424276614,1780731041000,-778.41,0.00013698,2]
[424276601,1780731041000,-778.41,0.00013698,2]
[424276567,1780731041000,-500.0,0.00013698,2]
[424276595,1780731041000,-778.41,0.00013698,2]
[424276573,1780731041000,-500.0,0.00013698,2]
[424276574,1780731041000,-500.0,0.00013698,2]
[424276575,1780731041000,-500.0,0.00013698,2]
[424276572,1780731041000,-500.0,0.00013698,2]
[424276576,1780731041000,-500.0,0.00013698,2]
[424276578,1780731041000,-500.0,0.00013698,2]
[424276580,1780731041000,-500.0,0.00013698,2]
[424276598,1780731041000,-778.41,0.00013698,2]
[424276577,1780731041000,-500.0,0.00013698,2]
[424276588,1780731041000,-1435.76,0.00013698,2]
[424276582,1780731041000,-1435.76,0.00013698,2]
[424276581,1780731041000,-1435.76,0.00013698,2]
[424276586,1780731041000,-1435.76,0.00013698,2]
[424276579,1780731041000,-500.0,0.00013698,2]
[424276585,1780731041000,-1435.76,0.00013698,2]
[424276587,1780731041000,-1435.76,0.00013698,2]
[424276597,1780731041000,-778.41,0.00013698,2]
[424276599,1780731041000,-778.41,0.00013698,2]
[424276594,1780731041000,-778.41,0.00013698,2]
[424276592,1780731041000,-778.41,0.00013698,2]
[424276593,1780731041000,-778.41,0.00013698,2]
[424276596,1780731041000,-778.41,0.00013698,2]
[424276591,1780731041000,-502.77238855,0.00013698,2]
[424276589,1780731041000,-1435.76,0.00013698,2]
[424276590,1780731041000,-1435.76,0.00013698,2]
[424276584,1780731041000,-1435.76,0.00013698,2]
[424276583,1780731041000,-1435.76,0.00013698,2]
[424276600,1780731041000,-778.41,0.00013698,2]
[424276673,1780731042000,-500.0,0.00013699,2]
[424276671,1780731042000,-500.0,0.00013699,2]
[424276669,1780731042000,-500.0,0.00013699,2]
[424276666,1780731042000,-500.0,0.00013699,2]
[424276670,1780731042000,-500.0,0.00013699,2]
[424276668,1780731042000,-500.0,0.00013699,2]
[424276665,1780731042000,-500.0,0.00013699,2]
[424276667,1780731042000,-500.0,0.00013699,2]
[424276662,1780731042000,-500.0,0.00013699,2]
[424276672,1780731042000,-500.0,0.00013699,2]
[424276664,1780731042000,-500.0,0.00013699,2]
[424276676,1780731042000,-500.0,0.00013699,2]
[424276695,1780731042000,-1900.98759908,0.00013699,2]
[424276677,1780731042000,-500.0,0.00013699,2]
[424276674,1780731042000,-500.0,0.00013699,2]
[424276683,1780731042000,-500.0,0.00013699,2]
[424276681,1780731042000,-500.0,0.00013699,2]
[424276678,1780731042000,-392.0436842,0.00013699,2]
[424276679,1780731042000,-500.0,0.00013699,2]
[424276682,1780731042000,-500.0,0.00013699,2]
[424276680,1780731042000,-500.0,0.00013699,2]
[424276685,1780731042000,-500.0,0.00013699,2]
[424276692,1780731042000,-1900.98759908,0.00013699,2]
[424276684,1780731042000,-500.0,0.00013699,2]
[424276693,1780731042000,-1900.98759908,0.00013699,2]
[424276661,1780731042000,-500.0,0.00013699,2]
[424276675,1780731042000,-500.0,0.00013699,2]
[424276663,1780731042000,-500.0,0.00013699,2]
[424276641,1780731042000,-14204.87,0.00013699,2]
[424276659,1780731042000,-29657.2294386,0.00013699,2]
[424276686,1780731042000,-500.0,0.00013699,2]
[424276632,1780731042000,-521.56,0.00013699,2]
[424276631,1780731042000,-1491.73,0.00013699,2]
[424276636,1780731042000,-49999.99,0.00013699,2]
[424276630,1780731042000,-3228.81,0.00013699,2]
[424276635,1780731042000,-1561.23,0.00013699,2]
[424276633,1780731042000,-150.99,0.00013699,2]
[424276634,1780731042000,-9999.99,0.00013699,2]
[424276648,1780731042000,-238834.53,0.00013699,2]
[424276637,1780731042000,-9999.99,0.00013699,2]
[424276649,1780731042000,-299.99,0.00013699,2]